{"text_format":"3","workbook":"xlsx","n_sheets":4,"sheets":["Year 1 ","Year 2","Year 3","Total Bidding Price"],"not_rendered":{"images":1,"defined_names":3,"comments":6},"read":"whole","date_system":"1900"}

{"sheet":"Year 1 ","index":0,"n_rows":37,"n_cols":13,"rows_kept":37,"merged":[[0,1,0,10],[1,1,1,7],[3,1,3,10],[4,1,4,3],[5,1,5,3],[6,1,6,3],[7,1,7,3],[8,1,8,3],[9,1,9,3],[10,1,10,3],[11,0,11,2],[12,0,12,3],[13,0,13,3],[14,0,14,3],[15,0,15,3],[16,0,16,3],[18,0,18,3],[19,0,19,2],[20,1,20,3],[21,1,21,3],[22,2,22,3],[23,0,23,10],[24,0,24,10],[25,0,25,10],[26,0,26,10],[27,0,27,10],[29,0,29,10],[30,1,30,3]]}
[null,"Pricing schedule Year One (1) "]
[null,"ANNEXURE A - APPOINTMENT OF TWO (2) SUITABLY QUALIFIED SERVICE PROVIDERS WHO ARE LOCATED IN SOUTH AFRICA TO PROVIDE CONTRACT MANAGEMENT AND ADMINISTRATION SERVICES FOR THE DISCRETIONARY / PIVOTAL GRANT FUNDING WINDOWS FOR ALL 9 PROVINCES FOR ALL 9 PROVINCES."]
[null,"Bid No: BS/2024/RFB520"]
[null,"Price evaluation will be conducted for 2,000 learners "]
["Task ","Additional Information",null,null,"Quantity","Per Unit Price (for scale 500 - 999 number of learners)","Price calculated for 999 learners","Per Unit Price (for scale 1,000 - 1,499 number of learners)","Price calculated for 1,499 learners","Unit Price ( for scale 1,500 - 2,000 number of learners)","Price calculated for 2,000 learners","Per Unit Price( for scale 2,001 and above - number of learners)","Price calculated for 2,001 learners"]
["Project Team","Project Executive/Project Manager, Administrator",null,null,1,null,{"$f":"F6*1","v":0},null,{"$f":"H6*1","v":0},null,{"$f":"J6*1","v":0},null,{"$f":"L6*1","v":0}]
["Planning","This includes project plan/monitoring plan with dates per Employer per contract as per the Scope of Work in the Terms of Reference",null,null,1,null,{"$f":"F7*1","v":0},null,{"$f":"H7*1","v":0},null,{"$f":"J7*1","v":0},null,{"$f":"L7*1","v":0}]
["Implementation","This includes the roll-out of the projects for Employed and Unemployed Beneficiaries as per the Scope of Work in the Terms of Reference",null,null,"Costed per learner on a sliding scale",null,{"$f":"F8*999","v":0},null,{"$f":"H8*1499","v":0},null,{"$f":"J8*2000","v":0},null,{"$f":"L8*2001","v":0}]
["Data Management Tracking & Reporting","This includes MoA tracking (inclusive of beneficiary tracking) and reporting to DHET at the appropriate time.",null,null,1,null,{"$f":"F9*1","v":0},null,{"$f":"H9*1","v":0},null,{"$f":"J9*1","v":0},null,{"$f":"L9*1","v":0}]
["Monitoring and Evaluation","This includes an employer verification and site visit 6-7 month into the project. M&E Plan to be submitted.",null,null,"Costed per learner on a sliding scale",null,{"$f":"F10*999","v":0},null,0,null,0,null,{"$f":"L10*2001","v":0}]
["Close Out","Closing out of projects as per BANKSETA requirements.",null,null,1,null,{"$f":"F11*1","v":0},null,{"$f":"H11*1","v":0},null,{"$f":"J11*1","v":0},null,{"$f":"L11*1","v":0}]
["SUB-TOTAL (VAT Inclusive)",{"$nulls":4},{"$f":"SUM(F6:F11)","v":{"v":0,"d":"R 0.00"}},{"$f":"SUM(G6:G11)","v":{"v":0,"d":"R 0.00"}},{"$f":"SUM(H6:H11)","v":{"v":0,"d":"R 0.00"}},{"$f":"SUM(I6:I11)","v":{"v":0,"d":"R 0.00"}},{"$f":"SUM(J6:J11)","v":{"v":0,"d":"R 0.00"}},{"v":0,"d":"R 0.00"},{"v":0,"d":"R 0.00"},{"v":0,"d":"R 0.00"}]
["Other Items not included in above - BIDDER TO SPECIFY",{"$nulls":3},"Quantity",{"$f":"+F5","v":"Per Unit Price (for scale 500 - 999 number of learners)"},"Price calculated for 999 learners","Per Unit Price (for scale 1,000 - 1,499 number of learners)","Price calculated for 1,499 learners","Unit Price ( for scale 1,500 - 2,000 number of learners)","Price calculated for 2,000 learners","Per Unit Price( for scale 2,001 and above - number of learners)","Price calculated for 2,001 learners"]
[1]
[2]
[3]
[4]
[5]
[6]
["Sub Total (VAT Inclusive)",{"$nulls":4},{"$f":"F14+F15+F16+F17+F18+F19","v":{"v":0,"d":"R 0.00"}},{"$f":"SUM(G14:G19)","v":{"v":0,"d":"R 0.00"}},{"v":0,"d":"R 0.00"},{"v":0,"d":"R 0.00"},{"v":0,"d":"R 0.00"},{"v":0,"d":"R 0.00"},{"v":0,"d":"R 0.00"},{"v":0,"d":"R 0.00"}]
[]
["TOTAL BIDDING PRICE INCL VAT",{"$nulls":4},{"$f":"F12+F20","v":{"v":0,"d":"R0.00"}},{"$f":"G12+G20","v":{"v":0,"d":"R0.00"}},{"v":0,"d":"R0.00"},{"v":0,"d":"R0.00"},{"v":0,"d":"R0.00"},{"v":0,"d":"R0.00"},{"v":0,"d":"R0.00"},{"v":0,"d":"R0.00"}]
["Notes:"]
["Price Evaluation will be conducted using 2,000 learners "]
["Pricing must cover all items detailed in the Terms of Reference (Scope)."]
["Pricing must be firm for the particular year for duration of the Project. Performance of the Panel Service Provider will be reviewed annually before the commencement of the next year's contract."]
["Pricing must include Value Added Tax (VAT) . Indicate this on all yellow cells containing price"]
["Total values in the spreadsheet per each level are automatically filled in."]
["BANKSETA reserves the right to negotiate market related prices."]
["BIDDER - Only complete cells marked in yellow"]
["Company Name:"]
[]
["Representative Name:"]
[]
["Date"]
[]
["Signature"]

{"sheet":"Year 2","index":1,"n_rows":37,"n_cols":13,"rows_kept":37,"merged":[[0,1,0,10],[1,1,1,7],[3,1,3,10],[4,1,4,3],[5,1,5,3],[6,1,6,3],[7,1,7,3],[8,1,8,3],[9,1,9,3],[10,1,10,3],[11,0,11,2],[12,0,12,3],[13,0,13,3],[14,0,14,3],[15,0,15,3],[16,0,16,3],[18,0,18,3],[19,0,19,2],[20,1,20,3],[21,1,21,3],[22,2,22,3],[23,0,23,10],[24,0,24,10],[25,0,25,10],[26,0,26,10],[27,0,27,10],[29,0,29,10],[30,1,30,3]]}
[null,"Pricing schedule Year Two (2) "]
[null,"ANNEXURE A - APPOINTMENT OF TWO (2) SUITABLY QUALIFIED SERVICE PROVIDERS WHO ARE LOCATED IN SOUTH AFRICA TO PROVIDE CONTRACT MANAGEMENT AND ADMINISTRATION SERVICES FOR THE DISCRETIONARY / PIVOTAL GRANT FUNDING WINDOWS FOR ALL 9 PROVINCES FOR ALL 9 PROVINCES."]
[null,"Bid No: BS/2024/RFB520"]
[null,"Price evaluation will be conducted for 2,000 learners "]
["Task ","Additional Information",null,null,"Quantity","Per Unit Price (for scale 500 - 999 number of learners)","Price calculated for 999 learners","Per Unit Price (for scale 1,000 - 1,499 number of learners)","Price calculated for 1,499 learners","Unit Price ( for scale 1,500 - 2,000 number of learners)","Price calculated for 2,000 learners","Per Unit Price( for scale 2,001 and above - number of learners)","Price calculated for 2,001 learners"]
["Project Team","Project Executive/Project Manager, Administrator",null,null,1,null,{"$f":"F6*1","v":0},null,{"$f":"H6*1","v":0},null,{"$f":"J6*1","v":0},null,{"$f":"L6*1","v":0}]
["Planning","This includes project plan/monitoring plan with dates per Employer per contract as per the Scope of Work in the Terms of Reference",null,null,1,null,{"$f":"F7*1","v":0},null,{"$f":"H7*1","v":0},null,{"$f":"J7*1","v":0},null,{"$f":"L7*1","v":0}]
["Implementation","This includes the roll-out of the projects for Employed and Unemployed Beneficiaries as per the Scope of Work in the Terms of Reference",null,null,"Costed per learner on a sliding scale",null,{"$f":"F8*999","v":0},null,{"$f":"H8*1499","v":0},null,{"$f":"J8*2000","v":0},null,{"$f":"L8*2001","v":0}]
["Data Management Tracking & Reporting","This includes MoA tracking (inclusive of beneficiary tracking) and reporting to DHET at the appropriate time.",null,null,1,null,{"$f":"F9*1","v":0},null,{"$f":"H9*1","v":0},null,{"$f":"J9*1","v":0},null,{"$f":"L9*1","v":0}]
["Monitoring and Evaluation","This includes an employer verification and site visit 6-7 month into the project. M&E Plan to be submitted.",null,null,"Costed per learner on a sliding scale",null,{"$f":"F10*999","v":0},null,0,null,0,null,{"$f":"L10*2001","v":0}]
["Close Out","Closing out of projects as per BANKSETA requirements.",null,null,1,null,{"$f":"F11*1","v":0},null,{"$f":"H11*1","v":0},null,{"$f":"J11*1","v":0},null,{"$f":"L11*1","v":0}]
["SUB-TOTAL (VAT Inclusive)",{"$nulls":4},{"$f":"SUM(F6:F11)","v":{"v":0,"d":"R 0.00"}},{"$f":"SUM(G6:G11)","v":{"v":0,"d":"R 0.00"}},{"$f":"SUM(H6:H11)","v":{"v":0,"d":"R 0.00"}},{"$f":"SUM(I6:I11)","v":{"v":0,"d":"R 0.00"}},{"$f":"SUM(J6:J11)","v":{"v":0,"d":"R 0.00"}},{"v":0,"d":"R 0.00"},{"v":0,"d":"R 0.00"},{"v":0,"d":"R 0.00"}]
["Other Items not included in above - BIDDER TO SPECIFY",{"$nulls":3},"Quantity",{"$f":"+F5","v":"Per Unit Price (for scale 500 - 999 number of learners)"},"Price calculated for 999 learners","Per Unit Price (for scale 1,000 - 1,499 number of learners)","Price calculated for 1,499 learners","Unit Price ( for scale 1,500 - 2,000 number of learners)","Price calculated for 2,000 learners","Per Unit Price( for scale 2,001 and above - number of learners)","Price calculated for 2,001 learners"]
[1]
[2]
[3]
[4]
[5]
[6]
["Sub Total (VAT Inclusive)",{"$nulls":4},{"$f":"F14+F15+F16+F17+F18+F19","v":{"v":0,"d":"R 0.00"}},{"$f":"SUM(G14:G19)","v":{"v":0,"d":"R 0.00"}},{"v":0,"d":"R 0.00"},{"v":0,"d":"R 0.00"},{"v":0,"d":"R 0.00"},{"v":0,"d":"R 0.00"},{"v":0,"d":"R 0.00"},{"v":0,"d":"R 0.00"}]
[]
["TOTAL BIDDING PRICE INCL VAT",{"$nulls":4},{"$f":"F12+F20","v":{"v":0,"d":"R0.00"}},{"$f":"G12+G20","v":{"v":0,"d":"R0.00"}},{"v":0,"d":"R0.00"},{"v":0,"d":"R0.00"},{"v":0,"d":"R0.00"},{"v":0,"d":"R0.00"},{"v":0,"d":"R0.00"},{"v":0,"d":"R0.00"}]
["Notes:"]
["Price Evaluation will be conducted using 2,000 learners "]
["Pricing must cover all items detailed in the Terms of Reference (Scope)."]
["Pricing must be firm for the particular year for duration of the Project. Performance of the Panel Service Provider will be reviewed annually before the commencement of the next year's contract."]
["Pricing must include Value Added Tax (VAT) . Indicate this on all yellow cells containing price"]
["Total values in the spreadsheet per each level are automatically filled in."]
["BANKSETA reserves the right to negotiate market related prices."]
["BIDDER - Only complete cells marked in yellow"]
["Company Name:"]
[]
["Representative Name:"]
[]
["Date"]
[]
["Signature"]

{"sheet":"Year 3","index":2,"n_rows":37,"n_cols":13,"rows_kept":37,"merged":[[0,1,0,10],[1,1,1,7],[3,1,3,10],[4,1,4,3],[5,1,5,3],[6,1,6,3],[7,1,7,3],[8,1,8,3],[9,1,9,3],[10,1,10,3],[11,0,11,2],[12,0,12,3],[13,0,13,3],[14,0,14,3],[15,0,15,3],[16,0,16,3],[18,0,18,3],[19,0,19,2],[20,1,20,3],[21,1,21,3],[22,2,22,3],[23,0,23,10],[24,0,24,10],[25,0,25,10],[26,0,26,10],[27,0,27,10],[29,0,29,10],[30,1,30,3]]}
[null,"Pricing schedule Year Three (3) "]
[null,"ANNEXURE A - APPOINTMENT OF TWO (2) SUITABLY QUALIFIED SERVICE PROVIDERS WHO ARE LOCATED IN SOUTH AFRICA TO PROVIDE CONTRACT MANAGEMENT AND ADMINISTRATION SERVICES FOR THE DISCRETIONARY / PIVOTAL GRANT FUNDING WINDOWS FOR ALL 9 PROVINCES FOR ALL 9 PROVINCES."]
[null,"Bid No: BS/2024/RFB520"]
[null,"Price evaluation will be conducted for 2,000 learners "]
["Task ","Additional Information",null,null,"Quantity","Per Unit Price (for scale 500 - 999 number of learners)","Price calculated for 999 learners","Per Unit Price (for scale 1,000 - 1,499 number of learners)","Price calculated for 1,499 learners","Unit Price ( for scale 1,500 - 2,000 number of learners)","Price calculated for 2,000 learners","Per Unit Price( for scale 2,001 and above - number of learners)","Price calculated for 2,001 learners"]
["Project Team","Project Executive/Project Manager, Administrator",null,null,1,null,{"$f":"F6*1","v":0},null,{"$f":"H6*1","v":0},null,{"$f":"J6*1","v":0},null,{"$f":"L6*1","v":0}]
["Planning","This includes project plan/monitoring plan with dates per Employer per contract as per the Scope of Work in the Terms of Reference",null,null,1,null,{"$f":"F7*1","v":0},null,{"$f":"H7*1","v":0},null,{"$f":"J7*1","v":0},null,{"$f":"L7*1","v":0}]
["Implementation","This includes the roll-out of the projects for Employed and Unemployed Beneficiaries as per the Scope of Work in the Terms of Reference",null,null,"Costed per learner on a sliding scale",null,{"$f":"F8*999","v":0},null,{"$f":"H8*1499","v":0},null,{"$f":"J8*2000","v":0},null,{"$f":"L8*2001","v":0}]
["Data Management Tracking & Reporting","This includes MoA tracking (inclusive of beneficiary tracking) and reporting to DHET at the appropriate time.",null,null,1,null,{"$f":"F9*1","v":0},null,{"$f":"H9*1","v":0},null,{"$f":"J9*1","v":0},null,{"$f":"L9*1","v":0}]
["Monitoring and Evaluation","This includes an employer verification and site visit 6-7 month into the project. M&E Plan to be submitted.",null,null,"Costed per learner on a sliding scale",null,{"$f":"F10*999","v":0},null,0,null,0,null,{"$f":"L10*2001","v":0}]
["Close Out","Closing out of projects as per BANKSETA requirements.",null,null,1,null,{"$f":"F11*1","v":0},null,{"$f":"H11*1","v":0},null,{"$f":"J11*1","v":0},null,{"$f":"L11*1","v":0}]
["SUB-TOTAL (VAT Inclusive)",{"$nulls":4},{"$f":"SUM(F6:F11)","v":{"v":0,"d":"R 0.00"}},{"$f":"SUM(G6:G11)","v":{"v":0,"d":"R 0.00"}},{"$f":"SUM(H6:H11)","v":{"v":0,"d":"R 0.00"}},{"$f":"SUM(I6:I11)","v":{"v":0,"d":"R 0.00"}},{"$f":"SUM(J6:J11)","v":{"v":0,"d":"R 0.00"}},{"v":0,"d":"R 0.00"},{"v":0,"d":"R 0.00"},{"v":0,"d":"R 0.00"}]
["Other Items not included in above - BIDDER TO SPECIFY",{"$nulls":3},"Quantity",{"$f":"+F5","v":"Per Unit Price (for scale 500 - 999 number of learners)"},"Price calculated for 999 learners","Per Unit Price (for scale 1,000 - 1,499 number of learners)","Price calculated for 1,499 learners","Unit Price ( for scale 1,500 - 2,000 number of learners)","Price calculated for 2,000 learners","Per Unit Price( for scale 2,001 and above - number of learners)","Price calculated for 2,001 learners"]
[1]
[2]
[3]
[4]
[5]
[6]
["Sub Total (VAT Inclusive)",{"$nulls":4},{"$f":"F14+F15+F16+F17+F18+F19","v":{"v":0,"d":"R 0.00"}},{"$f":"SUM(G14:G19)","v":{"v":0,"d":"R 0.00"}},{"v":0,"d":"R 0.00"},{"v":0,"d":"R 0.00"},{"v":0,"d":"R 0.00"},{"v":0,"d":"R 0.00"},{"v":0,"d":"R 0.00"},{"v":0,"d":"R 0.00"}]
[]
["TOTAL BIDDING PRICE INCL VAT",{"$nulls":4},{"$f":"F12+F20","v":{"v":0,"d":"R0.00"}},{"$f":"G12+G20","v":{"v":0,"d":"R0.00"}},{"v":0,"d":"R0.00"},{"v":0,"d":"R0.00"},{"v":0,"d":"R0.00"},{"v":0,"d":"R0.00"},{"v":0,"d":"R0.00"},{"v":0,"d":"R0.00"}]
["Notes:"]
["Price Evaluation will be conducted using 2,000 learners "]
["Pricing must cover all items detailed in the Terms of Reference (Scope)."]
["Pricing must be firm for the particular year for duration of the Project. Performance of the Panel Service Provider will be reviewed annually before the commencement of the next year's contract."]
["Pricing must include Value Added Tax (VAT) . Indicate this on all yellow cells containing price"]
["Total values in the spreadsheet per each level are automatically filled in."]
["BANKSETA reserves the right to negotiate market related prices."]
["BIDDER - Only complete cells marked in yellow"]
["Company Name:"]
[]
["Representative Name:"]
[]
["Date"]
[]
["Signature"]

{"sheet":"Total Bidding Price","index":3,"n_rows":31,"n_cols":6,"rows_kept":31,"merged":[[1,1,1,5],[2,1,4,5],[6,0,6,2],[7,1,7,2],[8,1,8,2],[9,1,9,2],[10,1,10,2],[11,1,11,2],[12,1,12,4],[13,1,13,3],[14,1,14,3],[15,1,15,3],[16,1,16,3],[18,0,18,3],[19,0,19,3],[20,0,20,3]]}
[]
[null,"Total - Pricing Schedule for 3 Years"]
[null,"APPOINTMENT OF TWO (2) SUITABLY QUALIFIED SERVICE PROVIDERS WHO ARE LOCATED IN SOUTH AFRICA TO PROVIDE CONTRACT MANAGEMENT AND ADMINISTRATION SERVICES FOR THE DISCRETIONARY / PIVOTAL GRANT FUNDING WINDOWS FOR ALL 9 PROVINCES"]
[]
[]
[{"$nulls":3},"Bid No: BS/2024/RFB520"]
["Description",{"$nulls":4},"Total Price Including VAT"]
[{"$nulls":3},{"$f":"#REF!/500","v":{"$error":"#REF!"}},{"$f":"F8/1000","v":{"v":0,"d":"R 0.00"}},{"v":0,"d":"R 0.00"}]
[{"$nulls":3},{"$f":"#REF!/500","v":{"$error":"#REF!"}},{"$f":"F9/1000","v":{"v":0,"d":"R 0.00"}},{"v":0,"d":"R 0.00"}]
[{"$nulls":3},{"$f":"#REF!/500","v":{"$error":"#REF!"}},{"$f":"F10/1000","v":{"v":0,"d":"R 0.00"}},{"v":0,"d":"R 0.00"}]
[{"$nulls":3},{"$f":"#REF!/500","v":{"$error":"#REF!"}},{"$f":"F11/1000","v":{"v":0,"d":"R 0.00"}},{"v":0,"d":"R 0.00"}]
[{"$nulls":3},{"$f":"#REF!/500","v":{"$error":"#REF!"}},{"$f":"F12/1000","v":{"v":0,"d":"R 0.00"}},{"v":0,"d":"R 0.00"}]
[{"$nulls":5},"For 2,000 learners a Year"]
[null,"TOTAL YEAR 1",{"$nulls":3},{"$f":"'Year 1 '!K22","v":{"v":0,"d":"R 0.00"}}]
[null,"TOTAL YEAR 2",{"$nulls":3},{"$f":"'Year 2'!K22","v":{"v":0,"d":"R 0.00"}}]
[null,"TOTAL YEAR 3",{"$nulls":3},{"$f":"'Year 3'!K22","v":{"v":0,"d":"R 0.00"}}]
[null,"TOTAL BIDDING PRICE INCL VAT",{"$nulls":3},{"$f":"SUM(F15:F15)","v":{"v":0,"d":"R 0.00"}}]
["Notes:"]
[]
[]
[]
[]
[]
[]
["Company Name:",{"$nulls":3}," "]
[{"$nulls":4}," "]
["Representative Name:",{"$nulls":3}," "]
[{"$nulls":4}," "]
["Date:",{"$nulls":3}," "]
[{"$nulls":4}," "]
["Signature",{"$nulls":3}," "]